bitfinex/quotes_SOLUSD_20240906
["timestamp","ask_amount","ask_price","bid_price","bid_amount"]
[1725631817509,28.18647426,130.04,129.92,19.2421]
[1725631817706,28.18647426,130.04,129.95,7.6952]
[1725631817906,28.18647426,130.04,129.96,9.23292616]
[1725631818106,28.18647426,130.04,129.95,19.2378]
[1725631818303,7.6917,130.01,129.95,26.9329]
[1725631818530,28.18647426,130.04,129.96,1.53839928]
[1725631818731,19.2362,129.97,129.83,6.4383]
[1725631819025,19.2362,129.97,129.83,27.23239977]
[1725631819213,19.2362,129.97,129.85,7.7011]
[1725631819214,7.6976,129.91,129.85,7.7011]
[1725631819413,7.6976,129.91,129.86,9.2399141]
[1725631819747,7.697,129.92,129.86,9.2399141]
[1725631820041,15.27655058,129.98,129.86,51.5394141]
[1725631820208,15.27655058,129.98,129.97,7.694]
[1725631820402,16.25621427,130.07,129.92,1.53851107]
[1725631820609,7.6925,130.0,129.95,19.2373]
[1725631820836,7.6927,130.0,129.93,7.6964]
[1725631821022,0.63846939,130.04,129.93,7.6964]
[1725631821023,19.2268,130.03,129.93,1.53874559]
[1725631821227,7.6935,129.98,129.91,28.47903727]
[1725631821423,7.6951,129.96,129.9,7.6981]
[1725631821626,7.6951,129.96,129.87,19.2494]
[1725631821627,7.6953,129.95,129.87,19.2494]
[1725631821809,7.6958,129.94,129.87,19.2494]
[1725631822132,19.86976939,130.0,129.87,19.2494]
[1725631822428,7.6941,129.97,129.9,19.2453]
[1725631822603,7.6941,129.97,129.91,7.6975]
[1725631822802,7.6947,129.96,129.9,19.2453]
[1725631823239,19.2281,130.02,129.9,19.2453]
[1725631823448,14.86275712,130.03,129.99,19.232]
[1725631823622,14.86275712,130.03,130.0,9.23022871]
[1725631823821,0.63846939,130.09,130.0,7.6921]
[1725631824039,7.6887,130.06,130.0,7.6921]
[1725631824215,7.6894,130.05,130.0,7.6921]
[1725631824416,7.6886,130.07,130.0,7.6921]
[1725631824636,7.6894,130.05,130.0,7.6921]
[1725631824945,7.6899,130.04,129.98,7.6934]
[1725631825310,41.24026009,130.1,129.99,1.53808658]
[1725631825311,21.3847907,130.1,129.99,1.53808658]
[1725631825515,21.3847907,130.1,130.01,26.919]
[1725631825752,22.02326009,130.1,130.01,19.2279]
[1725631826036,14.8232907,130.1,130.01,19.2279]
[1725631826243,7.6866,130.1,130.05,7.6888]
[1725631826613,7.687,130.09,130.04,26.9144]
[1725631826827,7.6864,130.1,130.04,26.914]
[1725631827032,7.6875,130.08,130.02,7.6905]
[1725631827214,19.2104,130.14,130.0,19.2295]
[1725631827215,19.84886939,130.14,130.0,19.2295]
[1725631827421,7.6881,130.08,130.03,7.6905]
[1725631827636,19.84886939,130.14,130.0,19.2295]
[1725631827637,7.6888,130.06,130.0,19.2295]
[1725631827842,7.6888,130.06,130.01,9.22939013]
[1725631828039,7.6888,130.06,130.01,7.6916]
[1725631828337,44.6871,130.15,130.01,7.6916]
[1725631828338,25.4766,130.15,130.02,46.53759207]
[1725631828510,6.2679,130.15,130.05,19.222]
[1725631828710,7.6863,130.11,130.05,19.222]
[1725631828910,7.6863,130.11,130.06,7.6887]
[1725631829139,7.6851,130.13,130.07,7.6876]
[1725631829341,7.6851,130.13,130.07,9.22461787]
[1725631829515,7.6851,130.13,130.07,7.6876]
[1725631829722,6.2679,130.15,130.06,7.6886]
[1725631829916,7.6852,130.12,130.06,7.6886]
[1725631830227,31.0213757,130.17,130.07,19.2189]
[1725631830429,31.0213757,130.17,130.05,50.0]
[1725631830620,31.0213757,130.17,130.06,45.0]
[1725631830824,14.8148757,130.17,130.13,7.6843]
[1725631831019,0.8531428,130.19,130.16,19.2057]
[1725631831239,0.8531428,130.19,130.18,7.6816]
[1725631831447,0.8531428,130.19,130.18,9.21721169]
[1725631832359,0.8531428,130.19,130.18,104.21721169]
[1725631832521,6.6011,130.31,130.24,19.1944]
[1725631832721,51.6248,130.35,130.24,19.1944]
[1725631833024,35.6525,130.35,130.25,7.6771]
[1725631833443,35.6525,130.35,130.24,19.1944]
[1725631833618,35.6525,130.35,130.2,69.2004]
[1725631833818,8.5270428,130.32,130.23,19.1964]
[1725631834017,0.8531428,130.32,130.23,19.1964]
[1725631834283,0.8531428,130.32,130.19,19.2015]
[1725631834420,7.677,130.26,130.19,19.2015]
[1725631834834,19.1876,130.3,130.19,19.2015]
[1725631835149,39.2215428,130.32,130.2,1.53535309]
[1725631835445,7.6764,130.27,130.19,19.2015]
[1725631835625,39.86001219,130.32,130.19,19.2015]
[1725631835626,19.1854,130.31,130.19,19.2015]
[1725631835831,20.63846939,130.3,130.18,1.53534647]
[1725631836026,7.6786,130.24,130.18,9.21684647]
[1725631836529,7.6786,130.24,130.15,113.9257]
[1725631836530,19.1896,130.28,130.19,1.53553134]
[1725631836727,58.4057428,130.32,130.2,1.53550651]
[1725631836934,58.4057428,130.32,130.18,19.2039]
[1725631836935,7.6764,130.27,130.21,9.21504115]
[1725631837140,58.4057428,130.32,130.21,9.21504115]
[1725631837141,58.4057428,130.32,130.22,7.6792]
[1725631837341,58.4057428,130.32,130.23,1.53509465]
[1725631837827,20.0373428,130.32,130.23,1.53509465]
[1725631838225,7.6762,130.28,130.23,1.53509465]
[1725631838535,20.0373428,130.32,130.21,19.1992]
[1725631838536,7.677,130.26,130.21,26.8786]
[1725631838844,19.1878,130.3,130.17,19.2045]
[1725631839051,7.6798,130.22,130.17,19.2045]
[1725631839268,0.63846939,130.29,130.15,6.3019]
[1725631839555,0.63846939,130.29,130.1,19.2159]
[1725631839556,7.6833,130.16,130.1,19.2159]
[1725631839754,7.6835,130.15,130.1,19.2159]
[1725631840047,16.5917,130.24,130.14,7.6839]
[1725631840249,7.6817,130.18,130.13,7.6841]
[1725631840831,35.7884,130.24,130.14,1.5362797]
[1725631841034,7.6809,130.2,130.15,9.21940517]
[1725631841663,0.63846939,130.23,130.11,19.2143]
[1725631841829,7.6833,130.16,130.11,26.9]
[1725631842024,0.63846939,130.23,130.15,7.6832]
[1725631842229,7.6809,130.2,130.14,9.22005671]
[1725631842447,35.788,130.24,130.1,7.6862]
[1725631842448,7.6831,130.16,130.1,7.6862]
[1725631842753,0.63846939,130.15,130.06,26.9101]
[1725631842936,0.63846939,130.2,130.06,26.9101]
[1725631843124,65.63846939,130.2,130.06,26.9101]
[1725631843326,65.63846939,130.2,130.02,6.4055]
[1725631843327,16.5246,130.19,130.03,19.2257]
[1725631843524,65.63846939,130.18,130.05,7.6893]
[1725631843748,7.6864,130.1,130.05,1.53720037]
[1725631844154,39.05026939,130.17,130.05,1.53720037]
[1725631844355,10.42094678,130.19,130.05,1.53720037]
[1725631844538,7.6839,130.15,130.1,7.6863]
[1725631844858,7.6836,130.15,130.1,7.6859]
[1725631845151,7.6827,130.17,130.09,19.2166]
[1725631845349,7.6841,130.14,130.09,7.6869]
[1725631845561,0.63846939,130.23,130.1,1.53674849]
[1725631845759,7.6812,130.19,130.14,26.8931]
[1725631845969,7.6822,130.18,130.14,19.2093]
[1725631846140,7.6824,130.17,130.12,7.6847]
[1725631846548,7.6838,130.15,130.1,7.6863]
[1725631846742,7.684,130.14,130.1,7.6863]
[1725631846958,19.2039,130.19,130.08,20.75535317]
[1725631847270,7.6852,130.12,130.07,7.688]
[1725631847439,7.6852,130.12,130.05,38.4438]
[1725631847440,7.6865,130.1,130.05,26.9117]
[1725631847644,7.6856,130.12,130.07,7.688]
[1725631847846,7.6846,130.13,130.08,7.6871]
[1725631848043,7.685,130.13,130.08,7.687]
[1725631848345,64.2045,130.18,130.07,19.2192]
[1725631848346,7.6858,130.11,130.07,19.2192]
[1725631848667,19.2081,130.16,130.05,7.6888]
[1725631848668,0.63846939,130.15,130.05,7.6888]
[1725631848861,7.6865,130.1,130.05,7.6888]
[1725631849169,19.2081,130.16,130.07,7.688]
[1725631849355,19.2143,130.12,130.03,19.2251]
[1725631849562,7.6865,130.1,130.05,7.6892]
[1725631849957,7.6865,130.1,130.05,26.9116]
[1725631850259,7.6862,130.11,130.06,7.6884]
[1725631850568,7.6868,130.1,130.05,26.9118]
[1725631850738,7.6858,130.11,130.05,19.2226]
[1725631850945,7.6852,130.13,130.08,7.6874]
[1725631851366,0.63846939,130.12,129.99,50.0]
[1725631851571,7.6893,130.05,130.0,7.6917]
[1725631851776,0.63846939,130.12,129.94,38.4768]
[1725631852060,19.2212,130.07,129.97,20.77239434]
[1725631852266,7.6893,130.05,129.99,19.2315]
[1725631852459,0.63846939,130.1,129.97,1.53780227]
[1725631852764,7.6912,130.02,129.97,7.6939]
[1725631852959,7.6895,130.05,130.0,7.6922]
[1725631853168,7.6904,130.04,130.0,7.6922]
[1725631853474,7.6894,130.05,130.0,7.6922]
[1725631853675,7.6894,130.05,129.99,1.53798825]
[1725631853676,7.6876,130.08,130.03,7.6904]
[1725631853847,7.6876,130.08,129.94,38.4768]
[1725631853848,7.69,130.04,130.0,7.6922]
[1725631854050,7.6888,130.06,129.99,19.2321]
[1725631854360,7.688,130.08,130.0,1.53779888]
[1725631854559,14.54263511,130.11,130.04,19.2243]
[1725631854951,14.54263511,130.11,130.02,1.53736004]
[1725631854952,7.6888,130.06,130.01,26.9199]
[1725631855285,19.2171,130.1,130.01,20.76603236]
[1725631855571,14.54263511,130.11,130.01,20.76603236]
[1725631855572,22.22843511,130.11,130.06,19.221]
[1725631855752,7.6868,130.1,130.06,19.221]
[1725631856066,7.6856,130.12,130.07,7.6877]
[1725631856269,7.6858,130.11,130.07,7.6877]
[1725631856575,7.6858,130.11,130.06,19.221]
[1725631856879,7.6905,130.03,129.98,7.6933]
[1725631857055,7.6912,130.02,129.97,26.9284]
[1725631857248,7.6912,130.02,129.98,7.6933]
[1725631857757,7.6912,130.02,129.91,6.2828]
[1725631857758,7.6945,129.97,129.88,51.53825675]
[1725631857966,6.4503,130.03,129.88,50.0]
[1725631858163,6.4503,130.03,129.9,50.0]
[1725631858484,6.4503,130.03,129.94,19.2389]
[1725631858781,7.6952,129.96,129.91,7.6976]
[1725631858989,81.42696939,130.02,129.88,50.0]
[1725631859290,81.42696939,130.02,129.9,50.0]
[1725631859291,16.5606,130.02,129.9,50.0]
[1725631859584,34.86426794,130.06,129.96,19.2365]
[1725631859754,45.0,130.05,129.96,19.2365]
[1725631860150,7.6923,130.0,129.95,7.695]
[1725631860477,45.0,130.05,129.97,7.6938]
[1725631860695,15.64126794,130.06,129.96,1.53833037]
[1725631861188,7.6911,130.02,129.98,19.2335]
[1725631861362,0.63846939,130.04,129.94,19.2387]
[1725631861559,0.63846939,130.04,129.94,26.9344]
[1725631861767,45.0,130.05,129.95,1.53879866]
[1725631861987,7.6923,130.0,129.95,7.6947]
[1725631862284,45.0,130.05,129.94,7.6958]
[1725631862285,7.6917,130.01,129.94,7.6958]
[1725631862467,45.63846939,130.05,129.91,20.78243197]
[1725631862468,0.63846939,130.0,129.91,19.2438]
[1725631862666,0.63846939,130.0,129.81,10.0]
[1725631862667,7.6971,129.92,129.86,0.8531428]
[1725631862893,6.2802,129.98,129.86,0.8531428]
[1725631862894,16.96376939,129.97,129.86,0.8531428]
[1725631863092,19.2408,129.94,129.86,0.8531428]
[1725631863388,0.63846939,129.93,129.86,0.8531428]
[1725631863589,0.63846939,129.93,129.75,6.4603]
[1725631863590,0.63846939,129.92,129.75,6.4603]
[1725631863766,7.7028,129.83,129.77,7.7059]
[1725631863961,7.7018,129.84,129.79,7.7046]
[1725631864399,7.7018,129.84,129.78,1.54042396]
[1725631864400,7.7012,129.85,129.8,7.704]
[1725631864701,15.43748811,129.92,129.8,7.704]
[1725631864702,34.68038811,129.92,129.8,20.80048108]
[1725631864862,34.68038811,129.92,129.84,7.7015]
[1725631864863,7.6989,129.89,129.84,7.7015]
[1725631865065,34.04191872,129.92,129.75,44.9945]
[1725631865066,15.43748811,129.92,129.75,44.9945]
[1725631865287,45.0,129.91,129.75,44.9945]
[1725631865586,14.79901872,129.92,129.79,38.5224]
[1725631865788,14.79901872,129.92,129.8,1.53981675]
[1725631865993,14.79901872,129.92,129.87,7.6994]
[1725631866194,16.3253,129.97,129.88,1.53954293]
[1725631866366,16.3253,129.97,129.75,68.1045]
[1725631866367,13.9739,129.98,129.91,7.6972]
[1725631866569,7.6956,129.95,129.87,26.9498]
[1725631866800,0.63846939,129.97,129.87,19.2499]
[1725631867295,0.63846939,129.97,129.83,40.0506437]
[1725631867296,7.6946,129.97,129.9,26.9436]
[1725631867494,6.2802,129.98,129.92,19.2413]
[1725631867674,13.9737,129.98,129.92,19.2413]
[1725631867876,6.2802,129.98,129.93,7.6962]
[1725631868175,7.6949,129.96,129.89,19.2467]
[1725631868386,0.63846939,129.97,129.89,19.2467]
[1725631868778,7.6941,129.97,129.89,19.2467]
[1725631868983,6.2802,129.98,129.93,7.6959]
[1725631869192,15.11194808,130.01,129.98,7.6934]
[1725631869382,16.0566,130.03,129.99,1.53858815]
[1725631869582,21.26049155,130.08,130.01,7.6916]
[1725631869895,21.26049155,130.08,129.92,1.53822499]
[1725631869896,21.26049155,130.08,130.03,19.2263]
[1725631870084,15.6279,130.09,130.06,19.2216]
[1725631870283,7.17286939,130.13,130.0,1.53781225]
[1725631870475,7.17286939,130.13,129.97,6.2955]
[1725631870679,19.2149,130.11,130.0,19.2305]
[1725631870874,7.17286939,130.13,129.93,1.53818657]
[1725631870875,7.17286939,130.13,130.01,1.5379271]
[1725631871202,7.6895,130.05,129.99,7.6928]
[1725631871394,0.63846939,130.12,130.01,7.6911]
[1725631871395,7.6881,130.08,130.01,7.6911]
[1725631871578,0.63846939,130.1,130.01,19.2289]
[1725631871774,0.63846939,130.12,130.02,7.6905]
[1725631871982,6.5344,130.13,130.04,19.2244]
[1725631872181,7.6852,130.12,130.06,7.6885]
[1725631872372,7.6854,130.12,130.07,1.5373466]
[1725631872679,7.6868,130.1,130.01,19.229]
[1725631872885,7.6889,130.06,129.96,15.1216]
[1725631873100,6.5344,130.13,129.98,50.0]
[1725631873275,15.2255542,130.14,130.03,19.2252]
[1725631873476,16.2602,130.15,130.04,1.53711872]
[1725631873798,0.63846939,130.14,130.03,1.53713425]
[1725631873997,0.63846939,130.14,129.96,15.1216]
[1725631874209,19.2175,130.09,129.96,26.9307]
[1725631874508,7.6936,129.98,129.93,7.6964]
[1725631874677,6.2362,130.07,129.92,19.2415]
[1725631874678,7.6928,130.0,129.92,19.2415]
[1725631874879,25.458,130.07,129.96,7.6946]
[1725631875092,6.2362,130.07,129.97,19.235]
[1725631875304,7.6901,130.04,129.98,7.6932]
[1725631875478,6.2362,130.07,129.97,19.235]
[1725631875479,7.6912,130.02,129.97,19.235]
[1725631875684,7.6917,130.01,129.94,19.2395]
[1725631875879,25.458,130.07,129.97,19.2351]
[1725631876086,25.458,130.07,129.98,1.53797188]
[1725631876087,6.2362,130.07,129.98,1.53797188]
[1725631876301,7.6929,129.99,129.94,7.6952]
[1725631876480,19.2248,130.05,129.94,7.6952]
[1725631876686,0.63846939,130.04,129.94,7.6952]
[1725631877200,19.2248,130.05,129.96,7.694]
[1725631877394,7.6905,130.04,129.97,7.6935]
[1725631877702,7.6905,130.04,129.98,1.53806485]
[1725631877902,15.07781335,130.11,129.95,50.0]
[1725631878078,15.07781335,130.11,129.96,45.0]
[1725631878079,7.6895,130.05,129.96,45.0]
[1725631878283,7.6895,130.05,129.96,46.53792229]
[1725631878506,0.63846939,130.1,129.94,1.53779827]
[1725631878683,38.4358,130.09,129.93,38.4814]
[1725631878886,7.6916,130.02,129.96,7.6946]
[1725631879085,7.6903,130.04,129.97,19.234]
[1725631879402,38.4358,130.09,129.98,1.53815156]
[1725631879601,7.6893,130.05,130.0,7.6922]
[1725631879803,7.6893,130.05,130.0,9.22999254]
[1725631880017,7.6893,130.05,130.0,7.6922]
[1725631880187,7.6923,130.0,129.96,19.2365]
[1725631880386,7.6923,130.0,129.91,56.2955]
[1725631880387,0.63846939,130.08,129.91,6.2955]
[1725631880589,7.6935,129.98,129.93,7.6958]
[1725631880788,19.2259,130.04,129.94,1.53844568]
[1725631880982,19.2259,130.04,129.96,7.6945]
[1725631880983,7.6922,130.01,129.96,7.6945]
[1725631881197,19.2259,130.04,129.95,20.77545738]
[1725631881501,7.6947,129.96,129.91,7.6976]
[1725631881701,6.1242,130.02,129.89,19.2465]
[1725631881702,7.6952,129.95,129.89,19.2465]
[1725631882013,0.63846939,130.01,129.89,19.2465]
[1725631882201,7.6954,129.95,129.9,7.698]
[1725631882513,45.63846939,130.01,129.89,19.2465]
[1725631882811,46.648,130.0,129.79,25.4932]
[1725631883012,7.7,129.87,129.79,19.2607]
[1725631883217,7.7008,129.86,129.8,7.7041]
[1725631883418,10.0,129.98,129.79,26.9648]
[1725631883419,7.7012,129.85,129.79,26.9648]
[1725631883620,0.63846939,129.97,129.75,19.2666]
[1725631883621,10.0,129.96,129.75,19.2666]
[1725631883803,50.0,129.98,129.76,1.54048541]
[1725631883804,27.24026939,129.95,129.76,1.54048541]
[1725631884114,27.24026939,129.95,129.75,19.2666]
[1725631884115,7.7019,129.84,129.75,19.2666]
[1725631884332,0.63846939,129.83,129.73,0.8531428]
[1725631884494,7.7035,129.82,129.74,1.54085827]
[1725631884898,0.63846939,129.91,129.73,0.8531428]
[1725631884899,6.1963,129.83,129.73,0.8531428]
[1725631885123,19.2609,129.8,129.73,0.8531428]
[1725631885428,84.16246939,129.79,129.63,7.7137]
[1725631885718,84.16246939,129.79,129.6,2.39476638]
[1725631885719,65.63846939,129.79,129.64,20.82525112]
[1725631885894,7.7064,129.77,129.65,1.54162648]
[1725631886095,7.7049,129.79,129.66,50.0]
[1725631886296,15.6314,129.8,129.71,7.7091]
[1725631886511,15.6314,129.8,129.72,7.7086]
[1725631886716,15.6314,129.8,129.69,19.2766]
[1725631887095,7.7055,129.78,129.69,19.2766]
[1725631887295,0.63846939,129.77,129.69,26.9867]
[1725631887518,7.7066,129.76,129.69,19.2766]
[1725631887817,15.6314,129.8,129.73,7.7082]
[1725631888133,15.6314,129.8,129.72,19.2715]
[1725631888416,45.63846939,129.79,129.72,19.2715]
[1725631888617,45.0,129.79,129.72,19.2715]
[1725631888827,15.6314,129.8,129.76,7.7064]
[1725631889005,15.6314,129.8,129.75,19.2672]
[1725631889400,6.1963,129.83,129.78,19.2629]
[1725631889605,15.17988539,129.84,129.81,7.7034]
[1725631889795,15.5137,129.88,129.82,7.7028]
[1725631889991,16.15216939,129.88,129.81,19.2585]
[1725631890212,15.5137,129.88,129.81,19.2585]
[1725631890527,15.5137,129.88,129.82,7.7029]
[1725631890725,15.5137,129.88,129.81,19.2585]
[1725631890900,15.44875286,129.91,129.87,7.7]
[1725631891101,15.44875286,129.91,129.79,1.53991244]
[1725631891326,15.44875286,129.91,129.76,38.5302]
[1725631891327,14.98532991,129.93,129.8,1.54006927]
[1725631891621,0.63846939,129.92,129.83,19.2552]
[1725631891829,14.98532991,129.93,129.84,1.54005172]
[1725631892026,14.98532991,129.93,129.89,19.2468]
[1725631892319,23.2216,129.95,129.84,1.54005172]
[1725631892518,0.63846939,129.94,129.85,19.2521]
[1725631892735,0.63846939,129.94,129.86,7.7004]
[1725631892901,0.63846939,129.94,129.87,7.7]
[1725631893525,23.2216,129.95,129.91,7.6974]
[1725631893708,23.2216,129.95,129.88,19.2483]
[1725631894020,0.63846939,129.94,129.88,26.9474]
[1725631894226,8.33476939,129.94,129.88,19.2483]
[1725631894609,7.6972,129.92,129.88,19.2483]
[1725631894799,0.63846939,129.94,129.84,19.2533]
[1725631895110,23.2216,129.95,129.86,19.2503]
[1725631895307,23.86006939,129.95,129.86,19.2503]
[1725631895510,7.7001,129.87,129.76,38.5302]
[1725631895717,7.7006,129.86,129.8,26.9639]
[1725631895928,7.6989,129.89,129.83,7.7019]
[1725631896231,7.6967,129.93,129.88,7.6994]
[1725631896402,7.6967,129.93,129.87,7.6998]
[1725631896739,23.2216,129.95,129.87,7.6998]
[1725631896740,23.2216,129.95,129.88,19.2474]
[1725631896906,7.6972,129.92,129.88,19.2474]
[1725631897301,7.6983,129.9,129.85,7.7006]
[1725631897501,7.698,129.91,129.86,7.7004]
[1725631897727,23.86006939,129.95,129.81,50.0]
[1725631897911,23.86006939,129.95,129.87,19.2485]
[1725631898123,23.86006939,129.95,129.87,26.9484]
[1725631898326,7.697,129.92,129.87,26.9484]
[1725631898525,7.6964,129.94,129.87,19.2485]
[1725631898727,7.6975,129.92,129.87,19.2485]
[1725631898924,7.6976,129.91,129.87,19.2485]
[1725631899251,7.6976,129.91,129.85,7.7011]
[1725631899424,23.2216,129.95,129.8,40.06006939]
[1725631899425,23.2216,129.95,129.88,7.6993]
[1725631899621,23.86006939,129.95,129.85,26.9528]
[1725631899829,7.6982,129.91,129.85,26.9525]
[1725631900045,42.4608,129.95,129.86,1.53974113]
[1725631900338,42.4608,129.95,129.85,7.7006]
[1725631900339,7.6983,129.9,129.85,7.7006]
[1725631901034,19.2382,129.95,129.86,1.53966882]
[1725631901240,19.242,129.93,129.83,26.9575]
[1725631901422,0.63846939,129.92,129.83,19.2553]
[1725631901627,7.7001,129.87,129.83,19.2553]
[1725631901855,19.242,129.93,129.84,7.7012]
[1725631902233,0.63846939,129.92,129.83,19.2553]
[1725631902436,7.7004,129.87,129.82,7.7026]
[1725631903024,19.2448,129.91,129.84,7.7017]
[1725631903421,41.74522596,129.96,129.85,7.7011]
[1725631903649,38.4738,129.96,129.86,7.7004]
[1725631903821,38.4738,129.96,129.87,7.6998]
[1725631904115,38.4738,129.96,129.86,20.79034216]
[1725631904320,39.11226939,129.96,129.86,19.2507]
[1725631904551,0.63846939,129.95,129.84,7.7013]
[1725631904923,0.63846939,129.95,129.8,19.26]
[1725631905220,0.63846939,129.95,129.82,19.2565]
[1725631905422,45.0,129.95,129.83,9.24162589]
[1725631905721,45.63846939,129.95,129.81,26.9616]
[1725631905929,45.63846939,129.95,129.81,19.2581]
[1725631906346,7.6993,129.89,129.82,7.7025]
[1725631906550,45.63846939,129.95,129.81,19.2581]
[1725631906730,19.2491,129.88,129.78,19.2623]
[1725631907249,54.68331611,129.93,129.78,69.2623]
[1725631907421,7.7018,129.84,129.8,7.704]
[1725631907622,7.7028,129.83,129.78,19.2623]
[1725631908254,7.7028,129.83,129.79,1.54019914]
[1725631908453,7.705,129.79,129.75,19.2673]
[1725631908633,7.7043,129.8,129.75,26.974]
[1725631909026,7.7036,129.81,129.76,7.7065]
[1725631909222,38.5035,129.86,129.73,7.7082]
[1725631909445,38.5035,129.86,129.74,1.54082976]
[1725631909446,7.7059,129.77,129.74,1.54082976]
[1725631909768,7.7059,129.77,129.74,1.54085076]
[1725631909769,7.7063,129.77,129.74,1.54085076]
[1725631910058,7.7063,129.77,129.74,1.54087763]
[1725631910249,38.5035,129.86,129.76,7.7064]
[1725631910450,7.7043,129.8,129.77,1.54031044]
[1725631910748,7.7031,129.82,129.77,1.54055617]
[1725631910931,7.7025,129.83,129.78,7.7049]
[1725631911129,22.1098,129.9,129.8,19.2594]
[1725631911360,22.1098,129.9,129.79,51.54019874]
[1725631911361,22.1098,129.9,129.81,1.53984136]
[1725631911536,7.7013,129.85,129.8,7.7037]
[1725631911727,41.3561,129.9,129.79,9.2446627]
[1725631911728,7.7019,129.84,129.79,9.2446627]
[1725631912061,19.2522,129.86,129.75,19.267]
[1725631912357,7.7048,129.79,129.75,19.267]
[1725631912528,19.2556,129.84,129.75,19.267]
[1725631912733,7.7054,129.78,129.71,20.81358792]
[1725631912931,7.7054,129.78,129.73,7.7078]
[1725631913165,19.2565,129.83,129.73,1.54089703]
[1725631913328,19.2599,129.81,129.71,19.2729]
[1725631913531,19.2628,129.79,129.67,38.5565]
[1725631913729,7.7084,129.73,129.69,7.7105]
[1725631913953,19.2628,129.79,129.68,19.2774]
[1725631913954,7.7091,129.72,129.68,19.2774]
[1725631914155,19.2656,129.77,129.69,9.25222762]
[1725631914449,19.2687,129.75,129.65,19.2823]
[1725631914853,6.1091,129.79,129.62,19.2866]
[1725631915153,7.7115,129.68,129.63,7.714]
[1725631915354,19.2762,129.7,129.6,0.8531428]
[1725631915538,38.5455,129.72,129.61,20.83083062]
[1725631915744,7.7118,129.68,129.62,7.7148]
[1725631915945,19.2708,129.73,129.63,1.54216754]
[1725631916360,7.7098,129.71,129.63,1.54216754]
[1725631916662,7.708,129.74,129.66,19.2797]
[1725631916886,19.2656,129.77,129.66,19.2797]
[1725631916887,7.7083,129.73,129.67,7.7117]
[1725631917169,7.7083,129.73,129.66,19.2797]
[1725631917170,7.7083,129.73,129.68,1.54167398]
[1725631917459,6.1091,129.79,129.68,1.5416741]
[1725631917831,6.1091,129.79,129.68,20.8195741]
[1725631918034,6.1091,129.79,129.63,38.5693]
[1725631918035,7.7089,129.72,129.67,7.7118]
[1725631918250,19.2647,129.78,129.66,1.54167613]
[1725631918459,19.2647,129.78,129.67,1.54165407]
[1725631918769,7.7089,129.72,129.67,7.7117]
[1725631919453,0.63846939,129.77,129.65,20.82448955]
[1725631919666,19.2683,129.75,129.64,7.7132]
[1725631919874,7.7108,129.69,129.64,7.7132]
[1725631920037,19.90676939,129.75,129.63,7.7142]
[1725631920038,7.7113,129.68,129.63,7.7142]
[1725631920555,41.17709501,129.77,129.64,20.82533286]
[1725631920556,0.63846939,129.76,129.64,20.82533286]
[1725631920754,7.7101,129.7,129.65,9.25484391]
[1725631921159,45.0,129.76,129.61,50.0]
[1725631921160,38.5425,129.73,129.61,19.2881]
[1725631921369,19.2734,129.72,129.63,19.2846]
[1725631921661,7.7101,129.7,129.65,7.7129]
[1725631921874,38.5306,129.77,129.65,1.54215568]
[1725631921875,39.16906939,129.77,129.65,1.54215568]
[1725631922161,39.16906939,129.77,129.63,1.54167215]
[1725631922162,19.2723,129.72,129.63,1.54167215]
[1725631922375,7.7119,129.67,129.62,27.0012]
[1725631922664,19.2684,129.75,129.65,7.713]
[1725631922961,7.7113,129.68,129.63,9.25636031]
[1725631923167,38.5423,129.73,129.6,0.8531428]
[1725631923346,7.7144,129.63,129.6,0.8531428]
[1725631923737,19.2774,129.69,129.6,0.8531428]
[1725631924062,19.273,129.72,129.61,1.54232744]
[1725631924247,19.2759,129.7,129.6,0.8531428]
[1725631924447,7.7131,129.65,129.6,0.8531428]
[1725631924757,57.8129,129.73,129.64,7.7135]